bitfinex/quotes_ETHUSD_20241104
["timestamp","ask_amount","ask_price","bid_price","bid_amount"]
[1730727715470,4.04516,2472.1,2471.8,0.22910172]
[1730727715674,4.04516,2472.1,2471.9,0.22910172]
[1730727715845,4.04516,2472.1,2471.7,0.8124]
[1730727716241,4.04516,2472.1,2471.8,0.36662895]
[1730727716441,5.230995,2472.1,2471.9,0.22913184]
[1730727716683,4.0453,2472.0,2471.6,4.04582]
[1730727716892,4.0453,2472.0,2471.7,0.59578517]
[1730727717064,4.0453,2472.0,2471.8,0.22914122]
[1730727717251,4.0453,2472.0,2471.6,4.04582]
[1730727717252,4.0453,2472.0,2471.9,0.22914122]
[1730727717744,0.7682,2472.2,2471.9,0.22914122]
[1730727717983,4.04517,2472.1,2471.6,8.0917]
[1730727718205,4.04517,2472.1,2471.7,0.59589252]
[1730727718347,4.04517,2472.1,2471.8,0.22918251]
[1730727718687,4.04517,2472.1,2471.9,0.22918251]
[1730727718849,4.04517,2472.1,2471.6,8.0917]
[1730727719049,4.04517,2472.1,2471.7,4.64177734]
[1730727719252,4.04517,2472.1,2471.8,0.22922282]
[1730727719484,4.04517,2472.1,2471.9,0.22922282]
[1730727719671,7.04494,2472.3,2471.9,0.8282]
[1730727719672,7.04484,2472.3,2471.9,0.8282]
[1730727719876,7.04484,2472.3,2471.9,4.87365]
[1730727720057,0.7754,2472.5,2472.0,0.2292437]
[1730727720280,3.0,2472.4,2472.1,4.27436209]
[1730727720502,3.0,2472.4,2472.1,4.0451]
[1730727721368,7.04471,2472.4,2471.9,4.87366]
[1730727721571,3.0,2472.2,2472.0,0.22930495]
[1730727721896,3.0,2472.2,2471.9,4.04546]
[1730727722211,3.0,2472.2,2472.0,0.22931287]
[1730727722426,3.0,2472.2,2471.9,4.04546]
[1730727722746,3.0,2472.3,2472.0,0.22937405]
[1730727723012,3.0,2472.3,2471.9,4.04538]
[1730727723214,3.0,2472.3,2472.0,0.22941233]
[1730727723416,3.0,2472.3,2471.9,4.04538]
[1730727723417,7.04489,2472.3,2472.1,0.22941233]
[1730727723711,7.04489,2472.3,2471.9,4.04538]
[1730727723931,7.04489,2472.3,2472.0,0.22940962]
[1730727724089,4.04505,2472.2,2471.8,4.84802]
[1730727724397,3.0,2472.2,2471.9,0.59658941]
[1730727724599,3.0,2472.2,2472.0,0.22945102]
[1730727724800,7.045,2472.2,2471.8,4.84812]
[1730727725016,7.045,2472.2,2471.9,0.22944316]
[1730727725213,7.045,2472.2,2472.0,0.22944316]
[1730727725512,3.0,2472.2,2471.8,8.89374]
[1730727725814,7.04499,2472.2,2471.9,0.22944278]
[1730727726003,7.04499,2472.2,2472.0,0.22944278]
[1730727726187,7.04499,2472.2,2471.8,8.89362]
[1730727726386,0.06965151,2472.1,2471.9,4.64200997]
[1730727726586,0.06965151,2472.1,2472.0,0.22944306]
[1730727727740,4.04498,2472.2,2472.0,0.22944306]
[1730727728017,0.0696751,2472.1,2472.0,4.0453]
[1730727728321,0.0696751,2472.1,2472.0,4.64187458]
[1730727728526,8.08977,2472.3,2472.0,0.59657458]
[1730727728686,0.06969208,2472.1,2471.9,4.04543]
[1730727728884,4.04482,2472.3,2472.0,0.22943428]
[1730727729232,4.04482,2472.3,2472.1,0.22943428]
[1730727729386,4.04482,2472.3,2471.9,4.04543]
[1730727729582,4.04482,2472.3,2472.0,0.22943347]
[1730727729781,4.04482,2472.3,2472.1,0.22943347]
[1730727730008,4.04482,2472.3,2471.9,4.04543]
[1730727730212,4.04482,2472.3,2472.0,0.22943]
[1730727730425,4.04482,2472.3,2472.1,0.22943]
[1730727730598,4.04482,2472.3,2471.9,4.04539]
[1730727730782,4.04482,2472.3,2472.0,0.22942986]
[1730727730984,6.15363,2472.4,2472.1,0.22942986]
[1730727731179,4.04481,2472.3,2471.9,4.12626062]
[1730727731383,4.04481,2472.3,2472.0,0.22942712]
[1730727731585,4.04481,2472.3,2472.1,0.22942712]
[1730727731812,4.04481,2472.3,2471.9,4.04536]
[1730727732021,4.04481,2472.3,2472.0,0.22943069]
[1730727732233,4.04481,2472.3,2472.1,0.22943069]
[1730727732406,4.81661,2472.3,2471.9,4.04536]
[1730727732610,6.92600782,2472.3,2472.0,0.22942652]
[1730727732790,6.92600782,2472.3,2472.1,0.22942652]
[1730727732992,4.81661,2472.3,2471.9,4.04536]
[1730727733186,6.92600782,2472.3,2472.0,0.22942874]
[1730727733382,4.81661,2472.3,2472.1,0.22942874]
[1730727733705,4.81661,2472.3,2471.9,8.09069]
[1730727734021,2.10939782,2472.3,2472.0,4.2747184]
[1730727734221,2.10939782,2472.3,2472.1,0.2294284]
[1730727734519,6.15407782,2472.4,2472.0,4.04529]
[1730727734724,6.15407782,2472.4,2472.1,0.22942512]
[1730727734889,6.15407782,2472.4,2472.0,4.04529]
[1730727735089,2.10939782,2472.3,2472.1,0.22942455]
[1730727735412,2.10939782,2472.3,2472.0,4.04529]
[1730727735581,2.10939782,2472.3,2472.1,0.22942999]
[1730727735786,2.10939782,2472.3,2472.0,4.04529]
[1730727735787,2.11037837,2472.3,2472.0,4.04529]
[1730727736032,2.11037837,2472.3,2472.1,0.22942873]
[1730727736319,2.11037837,2472.3,2472.0,4.04529]
[1730727736523,2.11037837,2472.3,2472.1,0.22942588]
[1730727736732,5.11037837,2472.4,2472.1,4.04513]
[1730727736901,3.0,2472.4,2472.2,0.22941835]
[1730727737101,3.0,2472.4,2472.1,4.04513]
[1730727737299,3.0,2472.5,2472.2,4.82415]
[1730727737501,7.04451,2472.5,2472.2,1.0086204]
[1730727737829,7.04451,2472.5,2472.2,0.7792]
[1730727738236,6.15671509,2472.3,2471.8,4.04556]
[1730727738535,4.04498,2472.2,2471.9,0.59651753]
[1730727738721,4.04498,2472.2,2472.0,0.22942289]
[1730727739034,4.04498,2472.2,2472.1,0.22942289]
[1730727739200,5.14814951,2472.2,2472.1,0.22942289]
[1730727740125,2.11190509,2472.3,2472.1,0.22942289]
[1730727740425,2.11289402,2472.3,2472.0,4.04529]
[1730727740738,2.11289402,2472.3,2472.1,0.22940003]
[1730727740942,2.11289402,2472.3,2472.0,4.04529]
[1730727741227,2.11289402,2472.3,2472.1,0.22940017]
[1730727741530,0.0685668,2472.2,2472.0,4.04529]
[1730727741695,0.0685668,2472.2,2472.1,4.27453881]
[1730727742230,11.0891,2472.5,2472.1,4.27453881]
[1730727742391,11.0891,2472.5,2472.2,0.22939881]
[1730727742392,4.04467,2472.4,2472.2,0.22939881]
[1730727742586,6.15863076,2472.3,2471.9,4.86187]
[1730727742792,2.11368425,2472.2,2472.0,0.2294128]
[1730727742989,2.11368425,2472.2,2472.1,0.2294128]
[1730727743217,4.04487,2472.3,2472.1,0.2294128]
[1730727743218,6.15855425,2472.3,2472.1,0.2294128]
[1730727743431,6.15866425,2472.2,2471.9,0.8165]
[1730727743594,6.15866425,2472.2,2472.0,0.22941349]
[1730727743794,2.11368425,2472.1,2471.8,4.04559]
[1730727743995,6.15866425,2472.2,2471.9,0.22942131]
[1730727744208,6.15866425,2472.2,2472.0,0.22942131]
[1730727744414,6.15866425,2472.2,2471.8,4.04559]
[1730727744617,2.11368425,2472.1,2471.8,4.04559]
[1730727744896,2.11368425,2472.2,2471.9,4.27480907]
[1730727745095,2.11368425,2472.2,2472.0,0.22941907]
[1730727745315,6.58012283,2472.4,2472.1,0.22941907]
[1730727745316,2.11368425,2472.3,2472.1,0.22941907]
[1730727745525,2.11368425,2472.3,2472.0,4.0453]
[1730727745708,2.11368425,2472.3,2472.1,0.22941973]
[1730727746006,2.11368425,2472.3,2472.0,8.09054]
[1730727746199,2.11368425,2472.3,2472.1,0.22942216]
[1730727746413,2.11368425,2472.3,2472.2,0.229428]
[1730727746898,2.11368425,2472.3,2472.0,4.04526]
[1730727747095,2.11368425,2472.3,2472.1,0.2294281]
[1730727747314,2.11368425,2472.3,2472.0,4.04526]
[1730727747624,2.11368425,2472.3,2472.1,0.22944545]
[1730727747795,2.11368425,2472.3,2472.0,4.04526]
[1730727747999,2.11368425,2472.3,2472.1,0.22944539]
[1730727748211,2.11368425,2472.3,2472.0,4.04526]
[1730727748418,2.11368425,2472.2,2472.0,4.04526]
[1730727748631,2.11368425,2472.2,2472.1,0.22946273]
[1730727748943,2.11368425,2472.3,2472.1,0.22946273]
[1730727749099,2.11368425,2472.3,2472.0,4.04526]
[1730727749299,2.11368425,2472.3,2472.1,0.22947714]
[1730727749536,2.11368425,2472.3,2472.0,4.04526]
[1730727749733,2.11483929,2472.3,2472.1,0.22947962]
[1730727749947,2.11483929,2472.2,2472.0,4.04526]
[1730727750243,2.11483929,2472.2,2472.1,0.22947788]
[1730727750444,2.11483929,2472.3,2472.1,0.22947788]
[1730727750607,2.11483929,2472.2,2471.8,4.0455]
[1730727750814,6.15972929,2472.3,2471.9,4.64212148]
[1730727751016,6.15985929,2472.2,2472.0,0.2294821]
[1730727751355,6.93815929,2472.2,2471.8,4.04555]
[1730727751558,6.93815929,2472.2,2471.9,0.22949109]
[1730727751559,4.04516,2472.1,2471.9,0.22949109]
[1730727751713,4.04516,2472.1,2472.0,0.22949109]
[1730727752145,6.15999929,2472.1,2472.0,0.22949314]
[1730727752651,4.04516,2472.1,2472.0,0.22949314]
[1730727752846,6.15999929,2472.1,2472.0,0.22949314]
[1730727753017,2.11483929,2472.1,2472.0,0.22949314]
[1730727753556,6.15997929,2472.1,2472.0,0.22949314]
[1730727753719,2.11483929,2472.1,2472.0,0.22949314]
[1730727753922,6.93818929,2472.2,2472.0,0.22949314]
[1730727754148,2.11483929,2472.1,2471.8,4.04552]
[1730727754336,2.11483929,2472.1,2471.9,0.2294757]
[1730727754545,2.11462034,2472.1,2472.0,0.2294757]
[1730727755547,2.11462034,2472.1,2471.8,4.04552]
[1730727755753,2.11462034,2472.1,2472.0,0.22947237]
[1730727756245,3.0,2472.3,2472.0,0.22947237]
[1730727756246,2.11462034,2472.2,2472.0,0.22947237]
[1730727756446,2.11462034,2472.3,2472.1,5.04591237]
[1730727756649,3.0,2472.4,2472.1,4.81644]
[1730727757361,4.04456,2472.5,2472.2,0.22947119]
[1730727757521,4.04456,2472.5,2472.1,4.81636]
[1730727757727,4.04456,2472.5,2472.2,0.22946353]
[1730727757934,4.04456,2472.5,2472.1,4.81636]
[1730727758269,4.04456,2472.5,2472.2,0.22946436]
[1730727758428,8.08918,2472.5,2472.3,0.22946436]
[1730727758767,8.08918,2472.5,2472.1,4.81636]
[1730727759080,4.04456,2472.5,2472.2,0.22945843]
[1730727759364,9.58181379,2472.7,2472.3,4.27417955]
[1730727759563,0.751,2472.4,2472.2,0.22945843]
[1730727759756,7.04481,2472.3,2472.2,0.22945843]
[1730727760330,10.33344379,2472.3,2472.2,0.22945843]
[1730727760568,7.79581,2472.3,2472.2,0.22945843]
[1730727760771,10.75638275,2472.3,2472.2,0.22945843]
[1730727761563,7.79581,2472.3,2472.2,0.22945843]
[1730727761773,9.70822799,2472.3,2472.2,0.22945843]
[1730727762064,12.66880074,2472.3,2472.2,0.22945843]
[1730727762266,9.70822799,2472.3,2472.2,0.22945843]
[1730727762432,12.66880074,2472.3,2472.2,0.22945843]
[1730727762632,9.70822799,2472.3,2472.2,0.22945843]
[1730727762825,12.66880074,2472.3,2472.2,0.22945843]
[1730727763058,9.70822799,2472.3,2472.2,0.22945843]
[1730727763258,12.66880074,2472.3,2472.2,0.22945843]
[1730727763463,9.70822799,2472.3,2472.2,0.22945843]
[1730727763673,12.66650517,2472.3,2472.2,0.22945843]
[1730727764871,9.70822799,2472.3,2472.2,0.22945843]
[1730727766390,12.66650517,2472.3,2472.2,0.22945843]
[1730727766601,13.21650517,2472.3,2472.2,0.22945843]
[1730727766955,10.26822799,2472.3,2472.2,0.22945843]
[1730727767357,13.76269291,2472.3,2472.2,0.22945843]
[1730727767571,10.26822799,2472.3,2472.2,0.22945843]
[1730727768071,10.26822799,2472.3,2472.2,8.43e-06]
[1730727768274,11.6553743,2472.3,2472.2,8.43e-06]
[1730727768466,15.81073013,2472.3,2472.2,8.43e-06]
[1730727768660,14.0873743,2472.3,2472.2,8.43e-06]
[1730727768864,4.04678,2471.1,2470.9,0.005]
[1730727769484,4.04694,2471.0,2470.9,0.005]
[1730727769811,4.04678,2471.1,2470.9,0.005]
[1730727770687,4.79844,2471.0,2470.9,0.005]
[1730727771372,4.8665203,2471.0,2470.9,0.005]
[1730727772397,8.75785033,2471.0,2470.9,0.005]
[1730727774404,7.8665203,2471.0,2470.9,0.005]
[1730727782116,7.1150203,2471.0,2470.9,0.005]
[1730727784916,3.0680803,2471.0,2470.9,0.005]
[1730727786397,7.1150203,2471.0,2470.9,0.005]
[1730727789907,7.8700203,2471.0,2470.9,0.005]
[1730727790227,9.06170933,2471.0,2470.9,0.005]
[1730727794916,8.30670933,2471.0,2470.9,0.005]
[1730727795121,7.1150203,2471.0,2470.9,0.005]
[1730727797923,3.0680803,2471.0,2470.9,0.005]
[1730727798119,0.0680803,2471.0,2470.9,0.005]
[1730727798422,4.04615,2471.5,2470.9,0.23403328]
[1730727798423,4.04669,2471.2,2470.9,0.23403328]
[1730727798651,0.06805668,2471.1,2470.9,0.005]
[1730727798822,0.06805668,2471.1,2471.0,0.8144]
[1730727799023,0.06805668,2471.1,2471.0,1.04346732]
[1730727800038,4.11483668,2471.1,2471.0,0.8144]
[1730727800242,4.04694,2471.0,2470.9,0.005]
[1730727800436,4.11483662,2471.0,2470.9,0.23408006]
[1730727801372,8.01151828,2471.0,2470.9,0.005]
[1730727802155,7.11483662,2471.0,2470.9,0.005]
[1730727803600,3.06789662,2471.0,2470.9,0.005]
[1730727803797,3.06789662,2471.0,2470.9,0.8315]
[1730727803948,3.06789662,2471.0,2470.9,1.06094293]
[1730727804150,3.06789662,2471.0,2470.9,0.8315]
[1730727804387,7.82631128,2471.0,2470.9,0.005]
[1730727804962,8.59621128,2471.0,2470.9,0.005]
[1730727810662,9.14621128,2471.0,2470.9,0.005]
[1730727811209,11.25172336,2471.0,2470.9,0.005]
[1730727811413,9.14621128,2471.0,2470.9,0.005]
[1730727811768,11.67279667,2471.0,2470.9,0.005]
[1730727812291,9.14621128,2471.0,2470.9,0.005]
[1730727812611,11.67390378,2471.0,2470.9,0.005]
[1730727813620,9.14621128,2471.0,2470.9,0.005]
[1730727814297,11.67617699,2471.0,2470.9,0.005]
[1730727814671,9.14621128,2471.0,2470.9,0.005]
[1730727817406,11.67686392,2471.0,2470.9,0.005]
[1730727818074,9.14621128,2471.0,2470.9,0.005]
[1730727819311,13.33095331,2471.0,2470.9,0.005]
[1730727820806,10.80042638,2471.0,2470.9,0.005]
[1730727820975,13.33081286,2471.0,2470.9,0.005]
[1730727821177,10.80042638,2471.0,2470.9,0.005]
[1730727821918,13.33083707,2471.0,2470.9,0.005]
[1730727822219,10.80042638,2471.0,2470.9,0.005]
[1730727824189,15.81042638,2471.0,2470.9,0.005]
[1730727825412,16.44439842,2471.0,2470.9,0.005]
[1730727826727,16.43439842,2471.0,2470.9,0.005]
[1730727826894,18.96525234,2471.0,2470.9,0.005]
[1730727827094,13.96522703,2471.0,2470.9,0.005]
[1730727827705,18.97504484,2471.0,2470.9,0.005]
[1730727828029,16.44439842,2471.0,2470.9,0.005]
[1730727828406,11.43439842,2471.0,2470.9,0.005]
[1730727828613,10.88439842,2471.0,2470.9,0.005]
[1730727828846,13.415012,2471.0,2470.9,0.005]
[1730727829340,10.88439842,2471.0,2470.9,0.005]
[1730727829916,13.96501151,2471.0,2470.9,0.005]
[1730727830115,11.43439842,2471.0,2470.9,0.005]
[1730727830642,13.08861352,2471.0,2470.9,0.005]
[1730727830851,18.09861352,2471.0,2470.9,0.005]
[1730727832511,21.05136398,2471.0,2470.9,0.005]
[1730727832808,18.09861352,2471.0,2470.9,0.005]
[1730727833235,21.05136398,2471.0,2470.9,0.005]
[1730727833626,18.09861352,2471.0,2470.9,0.005]
[1730727835049,21.05136398,2471.0,2470.9,0.005]
[1730727835451,21.05067451,2471.0,2470.9,0.005]
[1730727838359,21.05067451,2471.0,2470.9,0.005]
[1730727839350,21.12088078,2471.0,2470.9,0.005]
[1730727840160,21.12021278,2471.0,2470.9,0.005]
[1730727840540,18.16881979,2471.0,2470.9,0.005]
[1730727841080,21.12021278,2471.0,2470.9,0.005]
[1730727841484,18.16881979,2471.0,2470.9,0.005]
[1730727841879,21.12021278,2471.0,2470.9,0.005]
[1730727842288,16.51460469,2471.0,2470.9,0.005]
[1730727842583,21.12021278,2471.0,2470.9,0.005]
[1730727842946,21.12018038,2471.0,2470.9,0.005]
[1730727843343,19.46596528,2471.0,2470.9,0.005]
[1730727843684,21.12033449,2471.0,2470.9,0.005]
[1730727845548,19.46611939,2471.0,2470.9,0.005]
[1730727845748,21.12033449,2471.0,2470.9,0.005]
[1730727847286,21.12231483,2471.0,2470.9,0.005]
[1730727848098,18.16881979,2471.0,2470.9,0.005]
[1730727848282,21.12242786,2471.0,2470.9,0.005]
[1730727849365,21.12280578,2471.0,2470.9,0.005]
[1730727850292,18.16881979,2471.0,2470.9,0.005]
[1730727850589,13.61927607,2471.0,2470.9,0.005]
[1730727850794,6.40302376,2471.0,2470.9,0.005]
[1730727851165,8.93597044,2471.0,2470.9,0.005]
[1730727851565,8.05723886,2471.0,2470.9,0.005]
[1730727851935,11.01201651,2471.0,2470.9,0.005]
[1730727852419,12.90780141,2471.0,2470.9,0.005]
[1730727852591,15.5348315,2471.0,2470.9,0.005]
[1730727852788,15.53565288,2471.0,2470.9,0.005]
[1730727853815,12.58005385,2471.0,2470.9,0.005]
[1730727854506,15.53565288,2471.0,2470.9,0.005]
[1730727854711,100.68915054,2470.0,2469.9,4.04861]
[1730727854913,100.75576975,2470.0,2469.9,5.11460667]
[1730727855097,100.75576975,2470.0,2469.9,5.91450667]
[1730727856008,100.75576975,2470.0,2469.9,5.74915426]
[1730727857732,100.75576975,2470.0,2469.9,5.74920606]
[1730727859822,100.75576975,2470.0,2469.9,8.27211151]
[1730727860163,100.75576975,2470.0,2469.9,9.32704005]
[1730727860458,100.75576975,2470.0,2469.9,7.67282495]
[1730727861527,100.75576975,2470.0,2469.9,6.60675305]
[1730727861731,100.75576975,2470.0,2469.9,7.13942273]
[1730727862068,100.75576975,2470.0,2469.9,6.96939637]
[1730727862269,100.75576975,2470.0,2469.9,9.32676785]
[1730727862474,100.75576975,2470.0,2469.9,10.17543114]
[1730727862766,100.75576975,2470.0,2469.9,10.55809]
[1730727862926,100.75576975,2470.0,2469.9,9.70942671]
[1730727863440,100.75576975,2470.0,2469.9,10.55809]
[1730727864400,100.75576975,2470.0,2469.9,10.56809]
[1730727864976,100.75576975,2470.0,2469.9,10.55809]
[1730727865845,100.75576975,2470.0,2469.9,9.70942671]
[1730727866370,100.75576975,2470.0,2469.9,6.6177018]
[1730727866735,100.75576975,2470.0,2469.9,5.91446783]
[1730727867867,75.06661921,2470.0,2469.9,4.04864]
[1730727868283,75.06661921,2470.0,2469.8,4.04884]
[1730727868780,75.06661921,2470.0,2469.7,4.04897]
[1730727869135,75.06661921,2470.0,2469.7,8.09797]
[1730727869868,75.06661921,2470.0,2469.6,4.04912]
[1730727870038,75.06661921,2470.0,2469.6,4.0492]
[1730727870875,79.11519921,2470.0,2469.7,0.7693]
[1730727874233,4.60956,2469.4,2469.2,0.3824829]
[1730727874505,4.60956,2469.4,2469.0,0.7845]
[1730727874506,0.01,2469.1,2469.0,0.7845]
[1730727874667,0.15371824,2469.3,2468.8,0.7845]
[1730727874998,0.06270784,2469.2,2468.9,0.483513]
[1730727875511,3.09096333,2469.3,2468.9,4.533893]
[1730727875799,7.14073333,2469.3,2468.9,0.483513]
[1730727875979,0.06263471,2469.2,2468.9,0.483513]
[1730727876298,0.06263471,2469.2,2468.8,0.7845]
[1730727876495,4.04994,2469.2,2468.8,0.7845]
[1730727876664,0.0626035,2469.1,2468.8,0.7845]
[1730727877480,0.0626035,2469.1,2468.8,0.86550179]
[1730727877673,0.0626035,2469.1,2469.0,4.05022]
[1730727877891,0.01,2469.4,2469.1,4.81035]
[1730727878242,7.14022333,2469.6,2469.1,4.81035]
[1730727878384,0.01,2469.6,2469.1,0.7603]
[1730727878582,4.05932,2469.6,2469.1,0.7603]
[1730727878825,4.14028333,2469.6,2469.1,4.81025]
[1730727879627,0.01,2469.6,2469.2,4.04988]
[1730727880712,4.05924,2469.6,2469.1,0.7603]
[1730727880912,0.01,2469.6,2469.2,8.09966]
[1730727881229,0.01,2469.6,2469.2,4.04978]
[1730727882129,0.01,2469.6,2469.2,8.0996]
[1730727882293,0.01,2469.6,2469.2,4.04978]
[1730727882715,4.13003333,2469.7,2469.2,4.04978]
[1730727883087,4.13003333,2469.7,2469.2,8.09956]
[1730727883292,4.13003333,2469.7,2469.2,4.04978]
[1730727883592,4.13003333,2469.7,2469.2,8.09954]
[1730727883803,4.13003333,2469.7,2469.3,4.04972]
[1730727884022,0.08096333,2469.7,2469.3,4.04972]
[1730727884228,0.08096333,2469.7,2469.3,4.04965]
[1730727884538,7.13994333,2469.8,2469.4,0.7791]
[1730727885536,3.09096333,2469.8,2469.4,0.7791]
[1730727885704,4.04907,2469.7,2469.4,0.7791]
[1730727886793,3.09096333,2469.8,2469.4,0.7791]
[1730727886999,7.13987333,2469.8,2469.4,0.7791]
[1730727887411,4.13987333,2469.8,2469.4,1.261971]
[1730727887928,4.04909,2469.7,2469.4,1.261971]
[1730727888423,4.13005333,2469.7,2469.4,1.261971]
[1730727888626,4.13005333,2469.7,2469.4,0.7791]
[1730727889030,4.04909,2469.7,2469.4,0.7791]
[1730727889537,0.09096333,2469.8,2469.4,0.7791]
[1730727889696,4.13998333,2469.8,2469.4,0.7791]
[1730727889900,4.04909,2469.7,2469.4,0.7791]
[1730727890303,4.13005333,2469.7,2469.4,0.7791]
[1730727890807,0.08096333,2469.7,2469.4,0.7791]
[1730727891007,4.05902,2469.8,2469.4,0.7791]
[1730727891245,0.08096333,2469.7,2469.4,4.82866]
[1730727891541,0.14370309,2469.7,2469.4,4.82866]
[1730727891942,0.14370309,2469.7,2469.4,0.7791]
[1730727892250,4.19280309,2469.7,2469.4,0.7791]
[1730727893657,4.11183976,2469.7,2469.4,0.7791]
[1730727894656,0.06273976,2469.7,2469.4,4.82859]
[1730727895018,0.01,2469.8,2469.4,4.82859]
[1730727895220,0.06272256,2469.6,2469.4,4.82859]
[1730727895455,0.01,2469.8,2469.4,4.82859]
[1730727895943,0.06278844,2469.7,2469.4,4.82859]
[1730727896137,4.13988333,2469.8,2469.4,4.82859]
[1730727896354,0.06278844,2469.7,2469.5,4.04939]
[1730727896557,0.01,2469.8,2469.5,4.04939]
[1730727896762,0.06279371,2469.7,2469.6,4.04923]
[1730727897010,0.01,2469.8,2469.6,4.04923]
[1730727897124,0.06279371,2469.7,2469.6,4.04923]
[1730727897431,0.01,2469.8,2469.6,4.04923]
[1730727897633,0.06273706,2469.7,2469.6,4.04923]
[1730727897956,75.01,2470.0,2469.6,4.35822972]
[1730727898161,0.06286881,2469.9,2469.7,4.83629]
[1730727898362,0.06286881,2469.9,2469.8,4.04891]
[1730727899448,0.06286881,2469.9,2469.7,4.83636]
[1730727901076,0.06286881,2469.9,2469.7,0.7873]
[1730727901382,0.06286881,2469.9,2469.5,4.04925]
[1730727901677,4.05907,2469.7,2469.6,0.22817771]
[1730727901854,4.14003333,2469.7,2469.6,0.22817771]
[1730727902049,4.04938,2469.6,2469.2,0.36510781]
[1730727902261,4.04938,2469.6,2469.3,0.22820681]
[1730727902581,0.0628731,2469.5,2469.4,0.22820681]
[1730727903076,0.0628731,2469.5,2469.4,5.44855604]
[1730727903483,0.09096333,2469.9,2469.4,4.85496]
[1730727903645,0.06272455,2469.5,2469.4,5.08333836]
[1730727903840,4.04891,2469.8,2469.4,5.44876099]
[1730727904069,0.09096333,2469.9,2469.4,5.44876099]
[1730727904070,4.13973333,2469.9,2469.5,0.22837836]
[1730727904240,4.13973333,2469.9,2469.6,0.22837836]
[1730727904444,75.7724,2470.0,2469.7,0.2283648]
[1730727904683,0.01,2469.9,2469.6,4.04921]
[1730727904853,0.01,2469.9,2469.5,4.04938]
[1730727904854,4.05875,2469.9,2469.5,4.04938]
[1730727905057,4.05875,2469.9,2469.6,0.22835528]
[1730727905266,0.01,2469.9,2469.7,0.22835528]
[1730727905473,75.7724,2470.0,2469.7,4.04907]
[1730727905775,75.0,2470.0,2469.7,4.04907]
[1730727905985,75.0,2470.0,2469.8,4.27718607]
[1730727906157,0.01,2469.8,2469.4,1.65510016]
[1730727906355,0.06276712,2469.7,2469.5,4.64312225]
[1730727906543,75.8272,2470.0,2469.6,4.27750467]
[1730727906743,75.8272,2470.0,2469.5,0.7601]
[1730727906744,4.04891,2469.8,2469.7,0.22837467]
[1730727907059,4.92891939,2469.8,2469.7,0.22837467]
[1730727907255,4.92891939,2469.8,2469.4,0.36553263]
[1730727907256,4.04907,2469.7,2469.4,0.36553263]
[1730727907443,4.04909,2469.7,2469.5,0.22850907]
[1730727907639,0.06279571,2469.6,2469.3,4.80981]
[1730727907878,0.06279571,2469.6,2469.4,0.59416559]
[1730727908049,0.06279571,2469.6,2469.5,0.5941552]
[1730727908453,4.04907,2469.7,2469.5,0.5941552]
[1730727908644,4.04907,2469.7,2469.6,0.22851826]
[1730727908847,4.94708333,2469.8,2469.6,0.22851826]
[1730727909053,4.94708333,2469.8,2469.7,0.22851826]
[1730727910349,0.89816333,2469.8,2469.7,0.22851826]
[1730727910864,0.8172,2469.8,2469.7,0.22851826]
[1730727911065,4.05874,2469.9,2469.5,4.04936]
[1730727911255,4.05874,2469.9,2469.6,0.59424118]
[1730727911452,4.05874,2469.9,2469.7,0.22854729]
[1730727911680,4.05874,2469.9,2469.8,0.22854729]
[1730727911890,4.05874,2469.9,2469.6,0.36570528]
[1730727911891,0.01,2469.9,2469.6,0.36570528]
[1730727912056,0.01,2469.9,2469.7,0.22855441]
[1730727912271,0.01,2469.9,2469.5,4.04931]
[1730727912468,0.01,2469.9,2469.6,0.59428371]
[1730727912672,0.01,2469.9,2469.7,0.22856364]
[1730727912875,0.01,2469.9,2469.8,0.22856364]
[1730727913197,4.05874,2469.9,2469.8,0.22856364]
[1730727913890,0.01,2469.9,2469.8,0.22856364]
[1730727915190,75.7981,2470.0,2469.9,4.04874]
[1730727915191,75.0,2470.0,2469.9,4.04874]
[1730727915395,75.0,2470.0,2469.9,4.27732426]
[1730727915687,75.0,2470.0,2469.9,4.64301746]
[1730727916277,75.0,2470.0,2469.9,0.59427746]
[1730727916680,84.24956526,2470.0,2469.9,0.59427746]
[1730727916874,85.03706526,2470.0,2469.9,0.22858426]
[1730727917100,88.58706526,2470.0,2469.9,0.22858426]
[1730727917273,88.58706526,2470.0,2469.0,0.7952]
[1730727917274,4.04964,2469.4,2469.0,0.7952]
[1730727917474,4.04964,2469.4,2469.1,0.59418944]
[1730727917475,4.05989,2469.2,2469.1,0.59418944]
[1730727917800,4.05989,2469.2,2468.4,4.05113]
[1730727917801,4.83807,2468.8,2468.4,4.05113]
[1730727918007,4.83807,2468.8,2468.5,0.59425044]
[1730727918008,0.7875,2468.8,2468.5,0.59425044]
[1730727918186,0.7875,2468.8,2468.6,0.59425044]
[1730727918381,0.7875,2468.8,2468.4,4.41654112]
[1730727918722,0.7875,2468.8,2468.4,4.05113]
[1730727918876,4.83805,2468.8,2468.5,0.22836628]
[1730727919076,4.83805,2468.8,2468.4,4.41653415]
[1730727919296,4.83805,2468.8,2468.5,0.22837525]
[1730727919297,4.14176333,2468.7,2468.5,0.22837525]
[1730727919616,4.05088,2468.6,2468.4,0.22819228]
[1730727919815,4.0608,2468.7,2468.1,1.18500204]
[1730727919980,4.13183333,2468.6,2468.2,0.75187298]
[1730727920318,0.01,2468.4,2468.3,0.22819878]
[1730727920526,4.14216333,2468.4,2468.1,0.8198762]
[1730727920820,4.14216333,2468.4,2468.2,0.22803446]
[1730727921020,4.14216333,2468.4,2468.1,0.8198762]
[1730727921196,4.14216333,2468.4,2468.2,0.2280302]
[1730727921519,0.01,2468.2,2468.1,0.0615762]
[1730727923933,0.07228549,2468.2,2468.1,0.0615762]
[1730727927409,0.06228549,2468.2,2468.1,0.0615762]
[1730727928139,0.09096333,2468.4,2468.1,0.0615762]
[1730727928629,0.06180897,2468.3,2468.1,0.0615762]
[1730727929207,0.06180897,2468.3,2468.1,4.1131762]
[1730727929412,0.06180897,2468.3,2468.1,4.19417776]
[1730727929613,0.06180897,2468.3,2468.2,4.05153]
[1730727929819,0.09096333,2468.6,2468.2,4.05153]
[1730727930025,0.06172236,2468.3,2468.2,4.05153]
[1730727930236,0.09096333,2468.6,2468.2,4.05153]